bitfinex/quotes_ETHUSD_20250403
["timestamp","ask_amount","ask_price","bid_price","bid_amount"]
[1743676879093,0.19772753,1792.4,1792.3,6.775992]
[1743676881463,5.86111595,1792.4,1792.3,6.775992]
[1743676881687,5.86111595,1792.4,1792.3,7.325992]
[1743676881900,5.86111595,1792.4,1792.3,6.775992]
[1743676882409,5.86111595,1792.4,1792.3,5.57942]
[1743676883424,5.95e-06,1792.4,1792.3,6.12942]
[1743676883558,5.95e-06,1792.4,1792.3,9.12942]
[1743676883759,0.05,1792.9,1792.3,9.12942]
[1743676883760,0.05,1793.9,1792.8,3.7769]
[1743676883959,0.05,1793.9,1793.7,5.57493]
[1743676883960,0.18124773,1793.8,1793.7,5.57493]
[1743676884269,0.05,1793.9,1793.8,5.57475]
[1743676884463,0.05,1793.9,1793.7,5.57493]
[1743676885273,0.05,1793.9,1793.8,5.57475]
[1743676886114,0.05,1793.9,1793.8,6.45528204]
[1743676886401,0.05,1793.9,1793.8,6.39955]
[1743676887207,0.05,1793.9,1793.7,5.57493]
[1743676887405,0.05,1793.9,1793.1,5.57693]
[1743676887615,0.05,1793.9,1793.6,5.57522]
[1743676887782,0.05,1793.9,1793.8,5.57475]
[1743676889004,0.05,1793.9,1793.8,5.63048197]
[1743676889175,0.05,1793.9,1793.8,5.57475]
[1743676890316,0.22375892,1793.9,1793.8,5.57475]
[1743676890482,0.05,1793.9,1793.8,5.57475]
[1743676890684,0.22375892,1793.9,1793.8,5.57475]
[1743676890884,0.05,1793.9,1793.8,5.57475]
[1743676891217,0.05,1793.9,1793.8,6.689719]
[1743676891375,0.05,1793.9,1793.8,5.57475]
[1743676891576,0.22375892,1793.9,1793.8,5.57475]
[1743676891771,0.22375892,1793.9,1793.8,5.63048848]
[1743676891988,5.57475,1793.8,1793.3,5.57631]
[1743676892208,5.57556,1793.6,1793.2,5.57661]
[1743676892707,0.17375892,1793.5,1793.3,5.5761]
[1743676892914,0.17375892,1793.5,1793.4,5.576]
[1743676893074,5.57485,1793.8,1793.4,11.15188]
[1743676893274,0.17375892,1793.5,1793.4,5.57588]
[1743676893486,11.1498,1793.8,1793.4,5.57588]
[1743676893487,5.57485,1793.8,1793.4,5.57588]
[1743676893807,5.57485,1793.8,1793.4,11.15171]
[1743676894110,0.17375892,1793.7,1793.6,5.57537]
[1743676894406,0.05,1793.9,1793.7,5.57506]
[1743676894609,0.05,1793.9,1793.8,5.57475]
[1743676896523,0.05,1793.9,1793.8,5.63048522]
[1743676896734,0.05,1793.9,1793.8,7.25278452]
[1743676898629,0.05,1793.9,1793.7,5.57493]
[1743676898811,5.62457,1793.9,1793.5,5.57554]
[1743676899002,0.05,1793.9,1793.6,5.57536]
[1743676899203,0.05,1793.9,1793.6,11.15058]
[1743676899403,0.05,1793.9,1793.7,11.14993]
[1743676899713,0.05,1793.9,1793.7,5.57493]
[1743676900532,0.05,1793.9,1793.6,5.57532]
[1743676900737,0.05,1793.9,1793.6,11.15064]
[1743676901105,0.05,1793.9,1793.7,5.57504]
[1743676901437,5.57619,1793.4,1792.9,3.93366364]
[1743676901638,5.57619,1793.4,1793.0,5.97041636]
[1743676901798,5.57677,1793.2,1792.8,6.34626]
[1743676901998,5.57677,1793.2,1792.9,5.57755]
[1743676902543,11.15282,1793.3,1792.9,5.57743]
[1743676902747,5.57673,1793.2,1792.9,5.57743]
[1743676902948,5.57633,1793.3,1792.9,6.769764]
[1743676903805,11.15283,1793.3,1792.9,5.57738]
[1743676904048,5.57633,1793.3,1792.9,11.15478]
[1743676904417,11.15281,1793.3,1792.9,5.57738]
[1743676904615,5.57706,1793.1,1792.7,5.57802]
[1743676904815,5.57753,1793.0,1792.5,0.8210697]
[1743676905045,5.57753,1793.0,1792.6,5.57819]
[1743676905229,5.57753,1793.0,1792.7,0.557819]
[1743676905408,5.57747,1793.0,1792.7,0.557819]
[1743676905613,5.57757,1792.9,1792.7,0.557819]
[1743676905808,5.57747,1793.0,1792.7,0.557819]
[1743676906146,11.15494,1793.0,1792.7,0.557819]
[1743676906456,5.57757,1792.9,1792.5,6.34399]
[1743676906763,5.57794,1792.8,1792.4,5.57901]
[1743676907044,5.57864,1792.6,1792.2,6.36847]
[1743676907257,5.57891,1792.5,1792.1,5.57985]
[1743676907431,11.15791,1792.5,1792.1,5.57985]
[1743676908016,5.57945,1792.3,1792.0,5.58032]
[1743676908262,5.57945,1792.3,1792.0,6.775296]
[1743676908470,5.57945,1792.3,1792.0,1.194976]
[1743676908660,5.5785,1792.6,1791.8,5.58092]
[1743676908815,5.5785,1792.6,1791.7,5.58123]
[1743676908816,5.58014,1792.1,1791.7,5.58123]
[1743676909013,0.8266,1792.2,1791.6,0.8329]
[1743676909243,0.8266,1792.2,1791.9,5.58054]
[1743676909428,6.40637,1792.2,1791.9,5.58054]
[1743676909654,11.9863,1792.2,1791.8,5.58092]
[1743676909877,5.76435316,1792.1,1791.7,11.16239]
[1743676910050,5.76435316,1792.1,1791.8,1.116239]
[1743676910383,5.58038,1792.0,1791.7,5.5811]
[1743676910554,11.16045,1792.1,1791.7,5.5811]
[1743676910754,11.16045,1792.1,1791.6,6.41435]
[1743676910755,5.76457316,1792.0,1791.6,6.41435]
[1743676911077,11.1631,1791.7,1791.3,5.58243]
[1743676911245,5.58153,1791.7,1791.3,11.16486]
[1743676911440,5.58202,1791.5,1791.3,1.116486]
[1743676911641,0.18417316,1791.6,1791.1,0.05]
[1743676911642,11.16559,1791.3,1791.1,0.05]
[1743676911878,5.58284,1791.2,1791.1,0.05]
[1743676912044,0.18417316,1791.2,1791.1,0.05]
[1743676912242,5.76701316,1791.2,1791.1,0.05]
[1743676913145,0.18417316,1791.2,1791.1,0.05]
[1743676913347,5.58253,1791.3,1791.1,0.05]
[1743676913547,0.1599719,1791.2,1791.1,0.05]
[1743676913748,0.1599719,1791.2,1791.1,0.613333]
[1743676913943,5.58237,1791.4,1791.1,0.613333]
[1743676914283,5.7426319,1791.3,1791.1,0.05]
[1743676914469,0.1599719,1791.3,1791.1,5.63312]
[1743676914674,5.58164,1791.6,1791.2,5.63866328]
[1743676914987,5.58164,1791.6,1791.2,5.63847328]
[1743676915168,5.58164,1791.6,1791.3,6.41541]
[1743676915372,10.28060392,1792.3,1791.7,5.58129]
[1743676915552,10.28060392,1792.3,1791.6,5.5816]
[1743676915553,3.39340418,1792.3,1792.2,5.57973]
[1743676915751,3.39340418,1792.3,1791.9,5.58066]
[1743676916086,4.16840418,1792.3,1791.9,5.58066]
[1743676916289,9.74785418,1792.3,1791.9,5.58066]
[1743676916485,5.57975,1792.2,1791.9,5.58066]
[1743676916785,5.58017,1792.1,1791.7,5.58122]
[1743676916959,5.58124,1791.8,1791.4,0.8116]
[1743676917164,5.58124,1791.8,1791.2,5.06082197]
[1743676917165,5.58168,1791.6,1791.2,6.70989833]
[1743676917364,5.58157,1791.7,1791.3,5.58225]
[1743676917566,5.58107,1791.8,1791.3,5.5823]
[1743676917762,5.58089,1791.9,1791.5,5.58164]
[1743676917968,5.58037,1792.0,1791.6,5.58139]
[1743676918296,0.8099,1792.1,1791.5,6.14563598]
[1743676918595,6.39008,1792.1,1791.6,5.63740042]
[1743676918780,5.58055,1792.0,1791.6,5.63740042]
[1743676918975,5.58055,1792.0,1791.6,5.63722878]
[1743676919180,12.47564974,1792.4,1791.7,0.05580439]
[1743676919388,5.5799,1792.2,1791.7,5.58114]
[1743676919589,5.58007,1792.1,1791.7,6.217754]
[1743676919895,3.38241416,1792.0,1791.8,5.63664052]
[1743676920289,3.38241416,1792.0,1791.9,5.58066]
[1743676920770,3.38241416,1792.0,1791.9,6.46675758]
[1743676921196,3.38241416,1792.0,1791.9,7.01675758]
[1743676921393,3.38241416,1792.0,1791.9,11.22071976]
[1743676921702,3.38241416,1792.0,1791.9,7.67071976]
[1743676922055,3.49036276,1792.0,1791.9,7.67071976]
[1743676922455,3.49036276,1792.0,1791.8,5.58084]
[1743676922681,3.49036276,1792.0,1791.8,5.5808]
[1743676922859,3.49036276,1792.0,1791.9,5.58066]
[1743676923398,6.06999974,1792.7,1792.3,5.57916]
[1743676923556,5.6864586,1792.6,1792.3,5.57916]
[1743676923761,5.6865486,1792.6,1792.2,5.57972]
[1743676923983,5.6865486,1792.6,1792.2,5.57957]
[1743676924181,5.6865486,1792.6,1792.0,9.51372364]
[1743676924382,5.57908,1792.5,1792.1,5.57997]
[1743676924593,5.5786,1792.6,1792.2,5.57962]
[1743676924893,0.1079486,1792.5,1792.4,5.57906]
[1743676925085,11.64787974,1792.8,1792.4,5.57906]
[1743676925397,5.57788,1792.8,1792.5,5.57876]
[1743676925599,0.11455893,1792.7,1792.5,5.57876]
[1743676926095,0.11455893,1792.7,1792.4,5.57906]
[1743676926299,5.69293893,1792.7,1792.3,5.57936]
[1743676926461,5.57867,1792.6,1792.2,11.15928]
[1743676926663,5.57828,1792.7,1792.3,5.57924]
[1743676926982,4.14771416,1792.9,1792.2,6.7513977]
[1743676926983,9.72528416,1792.9,1792.2,6.7513977]
[1743676927296,5.57985,1792.2,1791.8,5.58095]
[1743676927593,0.8249,1792.3,1791.8,0.6217564]
[1743676927769,0.11455893,1792.2,1791.9,0.05580127]
[1743676927956,5.57889,1792.5,1792.1,11.16008]
[1743676928156,5.69382893,1792.4,1792.0,5.5803]
[1743676928519,0.11455893,1792.4,1791.6,3.8269]
[1743676928687,5.57993,1792.2,1791.8,5.58088]
[1743676928996,0.11455893,1792.1,1791.7,0.38269]
[1743676929184,0.7901,1792.6,1791.8,5.58093]
[1743676929380,5.58039,1792.0,1791.7,5.58126]
[1743676929581,6.36456,1792.1,1791.7,11.16244]
[1743676929911,0.11455893,1792.0,1791.8,5.58094]
[1743676930090,5.58173,1791.6,1791.2,5.58269]
[1743676930263,5.58173,1791.6,1791.1,6.41224]
[1743676930264,0.8109,1791.6,1791.1,0.05]
[1743676930456,5.58284,1791.2,1791.1,0.05]
[1743676930996,0.11455893,1791.2,1791.1,0.05]
[1743676931295,5.69739893,1791.2,1791.1,0.05]
[1743676931696,0.11455893,1791.2,1791.1,0.05]
[1743676932519,5.69739893,1791.2,1791.1,0.05]
[1743676932720,0.11455893,1791.2,1791.1,0.05]
[1743676933305,5.69739893,1791.2,1791.1,0.05]
[1743676933896,0.11455893,1791.2,1791.1,0.05]
[1743676935096,5.58284,1791.2,1791.1,0.05]
[1743676935421,5.69739893,1791.2,1791.1,0.05]
[1743676936299,0.11455893,1791.2,1791.1,5.63316]
[1743676936510,3.38241416,1791.6,1791.4,5.58213]
[1743676936918,5.58191,1791.5,1791.1,6.75475]
[1743676937111,8.96405416,1791.6,1791.2,5.58267]
[1743676937314,3.38241416,1791.6,1791.3,5.58237]
[1743676937623,8.96407416,1791.6,1791.2,6.258162]
[1743676937824,8.96407416,1791.6,1791.3,5.58248]
[1743676938126,3.38241416,1791.6,1791.3,5.58236]
[1743676938313,3.38241416,1791.6,1791.1,5.63287]
[1743676938489,5.58207,1791.5,1791.1,6.754498]
[1743676938690,11.16426,1791.5,1791.1,6.81032124]
[1743676938922,5.58207,1791.5,1791.1,12.39333124]
[1743676939139,5.58207,1791.5,1791.2,5.58284]
[1743676939658,6.87889974,1791.9,1791.4,5.58199]
[1743676939937,6.06999974,1791.9,1791.7,5.58127]
[1743676940145,11.65084974,1791.9,1791.5,11.721849]
[1743676940297,6.06999974,1791.9,1791.6,5.58138]
[1743676940921,11.65070974,1791.9,1791.6,5.58138]
[1743676941826,11.65070974,1791.9,1791.5,6.139969]
[1743676942028,0.7763,1791.7,1791.1,7.575298]
[1743676942234,5.58169,1791.6,1791.2,5.6384833]
[1743676942522,5.58191,1791.5,1791.1,0.05]
[1743676942728,5.58284,1791.2,1791.1,0.05]
[1743676943552,6.33334,1791.2,1791.1,0.05]
[1743676943692,15.40333974,1791.2,1791.1,0.05]
[1743676944893,15.91053935,1791.2,1791.1,0.05]
[1743676945531,12.91053935,1791.2,1791.1,0.05]
[1743676945831,15.91053935,1791.2,1791.1,0.05]
[1743676946193,15.40333974,1791.2,1791.1,0.05]
[1743676947033,12.909899,1791.2,1791.1,0.05]
[1743676947733,0.50655926,1791.2,1791.1,0.05]
[1743676948330,12.159399,1791.2,1791.1,0.05]
[1743676948729,15.930599,1791.2,1791.1,0.05]
[1743676949043,15.42403974,1791.2,1791.1,0.05]
[1743676949209,18.81928992,1791.2,1791.1,0.05]
[1743676950119,19.32595211,1791.2,1791.1,0.05]
[1743676950436,16.32595211,1791.2,1791.1,0.05]
[1743676951542,16.32595211,1791.2,1790.1,0.05]
[1743676951543,5.58409,1790.8,1790.1,0.05]
[1743676951842,9.97191211,1791.2,1790.4,3.93366364]
[1743676952017,5.58331,1791.1,1790.7,11.16839]
[1743676952222,5.5842,1790.8,1790.4,5.58524]
[1743676952450,5.5842,1790.8,1790.5,5.58501]
[1743676952754,5.58382,1790.9,1790.1,6.42156]
[1743676952904,12.47651974,1791.0,1790.7,5.58439]
[1743676953107,12.47651974,1791.0,1790.7,5.5844]
[1743676953108,6.06999974,1791.0,1790.7,5.5844]
[1743676953343,0.50648547,1791.2,1791.0,5.5832]
[1743676953552,11.65224974,1791.4,1791.0,5.5832]
[1743676953553,17.23468974,1791.4,1791.0,5.5832]
[1743676953852,0.823,1791.6,1791.2,5.58267]
[1743676953853,6.40477,1791.6,1791.2,5.58267]
[1743676954012,11.65131974,1791.7,1791.3,5.58243]
[1743676954215,6.06999974,1791.7,1791.4,5.58221]
[1743676954425,11.65132974,1791.7,1791.3,5.58243]
[1743676954762,11.65132974,1791.7,1791.4,5.58218]
[1743676954975,6.35497,1791.9,1791.5,5.6376171]
[1743676955175,6.35497,1791.9,1791.5,5.58174]
[1743676955176,5.58067,1791.9,1791.5,5.58174]
[1743676955474,5.58163,1791.6,1791.2,5.58282]
[1743676955624,5.58163,1791.6,1791.2,6.775554]
[1743676955829,5.58232,1791.4,1791.1,0.7629]
[1743676956229,11.16474,1791.4,1791.1,0.7629]
[1743676956539,11.16475,1791.4,1791.1,0.7629]
[1743676956744,5.58311,1791.2,1790.9,0.81922657]
[1743676956935,5.58307,1791.2,1790.9,0.7634]
[1743676957142,11.16614,1791.2,1790.9,0.7634]
[1743676957457,5.58338,1791.1,1790.7,11.16863]
[1743676957660,0.8203,1791.2,1790.6,0.7637]
[1743676957968,5.58429,1790.8,1790.4,5.58519]
[1743676958166,11.16859,1790.8,1790.4,5.58519]
[1743676958343,5.58469,1790.7,1790.3,0.7637]
[1743676958528,5.58534,1790.5,1790.1,6.39256]
[1743676958863,5.58466,1790.7,1790.3,5.58563]
[1743676959027,5.58414,1790.8,1790.5,5.58502]
[1743676959234,5.58421,1790.8,1790.4,5.58523]
[1743676959444,5.58421,1790.8,1790.4,5.64108567]
[1743676959661,5.58421,1790.8,1790.4,12.34898124]
[1743676959964,5.58421,1790.8,1790.5,5.58502]
[1743676960961,5.58421,1790.8,1790.4,12.29304557]
[1743676961347,5.58382,1790.9,1790.5,11.1699]
[1743676961553,5.58382,1790.9,1790.6,6.39863]
[1743676961871,6.06999974,1791.0,1790.4,1.12265557]
[1743676961872,5.58428,1790.8,1790.4,6.70793557]
[1743676962031,5.58442,1790.7,1790.4,5.64112513]
[1743676962373,5.58428,1790.8,1790.4,5.64104513]
[1743676962534,5.58428,1790.8,1790.5,5.58499]
[1743676962871,5.58428,1790.8,1790.4,11.17042]
[1743676963025,11.16785,1790.9,1790.5,5.58492]
[1743676963232,5.58425,1790.8,1790.4,11.17042]
[1743676963427,6.86269974,1791.3,1790.4,4.78856129]
[1743676963630,5.58318,1791.1,1790.8,5.58397]
[1743676963863,5.58349,1791.0,1790.7,0.7934]
[1743676964364,11.65260974,1791.3,1790.7,0.84923889]
[1743676964671,6.06999974,1791.3,1791.0,5.58331]
[1743676964832,11.65255974,1791.3,1791.0,5.58331]
[1743676965028,6.06999974,1791.3,1791.0,11.16665]
[1743676965357,6.06999974,1791.3,1791.0,5.58339]
[1743676965560,11.65254974,1791.3,1791.0,5.58339]
[1743676965857,11.65254974,1791.3,1790.9,5.58355]
[1743676966054,11.16621,1791.2,1790.8,5.58404]
[1743676966257,11.16621,1791.2,1790.8,5.63987396]
[1743676966433,11.16621,1791.2,1790.8,11.22380396]
[1743676966638,5.58334,1791.1,1790.7,6.37778]
[1743676966946,6.06999974,1791.3,1790.5,5.58496]
[1743676966947,11.65264974,1791.3,1790.5,5.58496]
[1743676967161,5.58412,1790.8,1790.5,5.58496]
[1743676967361,5.58455,1790.7,1790.3,11.17113]
[1743676967561,5.58427,1790.8,1790.4,5.58508]
[1743676967769,5.5839,1790.9,1790.5,5.58502]
[1743676968286,11.65363974,1791.0,1790.6,5.58459]
[1743676968643,17.23729974,1791.0,1790.6,11.16914]
[1743676968845,5.58379,1790.9,1790.6,5.58455]
[1743676969167,11.65363974,1791.0,1790.6,11.16916]
[1743676969887,17.23729974,1791.0,1790.6,5.58455]
[1743676970190,17.23729974,1791.0,1790.6,11.16917]
[1743676970564,6.06999974,1791.0,1790.7,0.84973993]
[1743676970753,6.06999974,1791.0,1790.8,5.58381]
[1743676971113,6.40755,1791.2,1790.9,5.58372]
[1743676971114,5.58287,1791.2,1790.9,5.58372]
[1743676971457,5.58287,1791.2,1790.9,11.1674]
[1743676971670,11.65256974,1791.3,1790.9,5.58368]
[1743676971871,11.65256974,1791.3,1790.9,5.58363]
[1743676972067,11.65166974,1791.6,1791.2,5.58255]
[1743676972290,6.06999974,1791.6,1791.2,6.35838]
[1743676972487,11.65159974,1791.6,1791.3,5.58241]
[1743676972795,6.06999974,1791.6,1791.3,11.16479]
[1743676973094,6.06999974,1791.6,1791.4,5.58208]
[1743676973465,5.58056,1792.0,1791.4,6.75435178]
[1743676973657,5.58056,1792.0,1791.6,5.58129]
[1743676973854,5.58069,1791.9,1791.6,5.63709999]
[1743676974054,5.58069,1791.9,1791.5,5.5819]
[1743676974298,5.5811,1791.8,1791.5,5.5819]
[1743676974995,11.16162,1791.9,1791.5,11.1638]
[1743676975289,5.58007,1792.1,1791.5,1.11638]
[1743676975493,5.58149,1791.7,1791.3,5.58247]
[1743676975677,11.16305,1791.7,1791.3,5.58247]
[1743676975879,5.58189,1791.6,1791.2,6.36833]
[1743676976192,5.58243,1791.4,1791.0,5.58335]
[1743676976398,5.58243,1791.4,1791.1,5.58304]
[1743676976996,5.58243,1791.4,1791.1,5.6388657]
[1743676977194,5.58165,1791.6,1791.1,6.76116727]
[1743676977413,5.58165,1791.6,1791.2,5.58271]
[1743676977708,5.58165,1791.6,1791.3,5.58252]
[1743676977903,5.58165,1791.6,1791.2,5.58271]
[1743676978105,3.0,1792.0,1790.9,6.936643]
[1743676978106,5.58066,1791.9,1791.3,6.41243]
[1743676978405,11.16343,1791.6,1791.3,0.83]
[1743676978628,5.58166,1791.6,1791.3,0.83]
[1743676978813,6.06999974,1791.8,1791.4,0.05581597]
[1743676979110,6.06999974,1791.8,1791.6,5.58158]
[1743676979605,6.06999974,1791.8,1791.7,5.58129]
[1743676979777,11.65008974,1792.1,1791.7,5.58129]
[1743676979977,11.65008974,1792.1,1791.8,5.58089]
[1743676980525,11.65008974,1792.1,1791.7,6.41119]
[1743676980728,11.65008974,1792.1,1791.8,5.58096]
[1743676981610,11.65008974,1792.1,1791.7,0.83]
[1743676981611,6.06999974,1792.1,1791.7,0.83]
[1743676981797,5.58053,1792.0,1791.7,0.83]
[1743676981976,5.58053,1792.0,1791.7,6.41125]
[1743676982313,11.16106,1792.0,1791.7,6.41125]
[1743676982828,5.58053,1792.0,1791.7,6.41125]
[1743676983427,5.58068,1791.9,1791.6,5.58146]
[1743676983726,5.58068,1791.9,1791.3,9.51616364]
[1743676983727,5.58138,1791.7,1791.3,6.39182]
[1743676983898,5.58163,1791.6,1791.3,6.39182]
[1743676984575,5.58138,1791.7,1791.3,6.44749823]
[1743676984780,5.58138,1791.7,1791.4,5.58215]
[1743676984990,5.58099,1791.8,1791.5,5.58185]
[1743676985438,17.23149974,1791.9,1791.5,5.58179]
[1743676985606,5.58115,1791.8,1791.4,6.78508482]
[1743676985791,5.58115,1791.8,1791.5,5.5819]
[1743676986311,5.58146,1791.7,1791.3,6.39174]
[1743676986522,5.58146,1791.7,1791.3,13.171572]
[1743676986718,5.58172,1791.6,1791.3,0.8093]
[1743676987017,5.58172,1791.6,1791.3,6.44764907]
[1743676987333,11.16282,1791.7,1791.3,6.44755907]
[1743676987495,5.58173,1791.6,1791.2,11.16554]
[1743676987890,11.65072974,1791.9,1791.2,5.58284]
[1743676988226,11.16228,1791.8,1791.4,5.58197]
[1743676988435,5.58173,1791.6,1791.2,11.16545]
[1743676988590,11.1636,1791.6,1791.2,5.58272]
[1743676988789,5.58173,1791.6,1791.2,11.16541]
[1743676989126,11.16276,1791.7,1791.4,5.58221]
[1743676989299,5.58098,1791.8,1791.4,5.58221]
[1743676989498,6.06999974,1791.9,1791.5,0.05581771]
[1743676989690,11.65069974,1791.9,1791.6,5.58145]
[1743676990096,6.06999974,1791.9,1791.7,6.38287]
[1743676990321,5.58037,1792.0,1791.7,0.8016]
[1743676990529,5.58075,1791.9,1791.6,5.58145]
[1743676990733,5.58075,1791.9,1791.6,6.219755]
[1743676991428,5.58037,1792.0,1791.6,11.801255]
[1743676992098,5.58037,1792.0,1791.7,5.58124]
[1743676992432,5.58037,1792.0,1791.6,6.219755]
[1743676992433,6.06999974,1792.2,1791.6,0.638305]
[1743676992633,6.06999974,1792.2,1791.5,0.8016]
[1743676992634,11.64972974,1792.2,1791.8,5.58091]
[1743676992811,17.22972974,1792.2,1791.8,5.58091]
[1743676993224,11.16041,1792.1,1791.7,5.58126]
[1743676993423,6.06999974,1792.2,1791.9,5.58063]
[1743676993424,11.64992974,1792.2,1791.9,5.58063]
[1743676993601,6.06999974,1792.5,1792.0,0.8201]
[1743676993801,6.06999974,1792.5,1792.1,5.58004]
[1743676994023,6.06999974,1792.5,1792.2,5.57945]
[1743676994226,6.06999974,1792.5,1792.3,5.5794]
[1743676994734,6.06999974,1792.5,1792.3,12.274627]
[1743676995034,6.06999974,1792.5,1792.4,5.57911]
[1743676995235,5.5782,1792.7,1792.3,6.695237]
[1743676995441,5.5786,1792.6,1792.2,11.15934]
[1743676995751,5.5786,1792.6,1792.3,5.57937]
[1743676996304,5.57817,1792.7,1792.4,5.57908]
[1743676996815,11.64790974,1792.8,1792.4,5.57908]
[1743676997000,11.64790974,1792.8,1792.5,6.33566]
[1743676997205,11.64790974,1792.8,1792.5,7.527122]
[1743676997519,0.10690211,1792.7,1792.5,7.527122]
[1743676997729,0.10690211,1792.7,1792.5,1.191462]
[1743676998722,0.10690211,1792.7,1792.4,5.57894]
[1743676998723,0.10690211,1792.7,1792.4,11.15793]
[1743676999027,6.06999974,1792.8,1792.6,5.57839]
[1743676999206,0.10450943,1792.7,1792.6,5.57839]
[1743676999414,0.10450943,1792.7,1792.6,10.07466115]
[1743676999623,0.05,1792.9,1792.8,5.57786]
[1743676999825,1e-05,1792.9,1792.8,11.8048016]
[1743677000046,6.06999974,1793.6,1793.5,5.57568]
[1743677002034,0.05,1793.9,1793.8,5.57475]
[1743677002944,0.05,1793.9,1793.8,6.37665]
[1743677003347,0.05,1793.9,1793.8,6.43238775]
[1743677003548,0.05,1793.9,1793.8,7.56896778]
[1743677003911,0.05,1793.9,1793.8,11.18671722]
[1743677004315,0.05,1793.9,1793.8,0.8019]
[1743677004563,0.05,1793.9,1793.8,6.37665]
[1743677004717,0.05,1793.9,1793.8,6.43239201]
[1743677005156,0.05,1793.9,1793.8,10.05013719]
[1743677005522,6.06999974,1794.8,1794.0,0.8094]
[1743677005839,5.57256,1794.6,1794.1,11.14748]
[1743677006227,5.57256,1794.6,1794.2,5.57348]
[1743677006448,5.57258,1794.5,1794.2,5.57348]
[1743677006656,0.8077,1794.7,1794.0,0.8094]
[1743677006857,5.57321,1794.3,1793.9,11.14861]
[1743677007151,5.57321,1794.3,1793.9,5.57427]
[1743677007553,5.57321,1794.3,1793.9,5.6300068]
[1743677007727,5.57292,1794.4,1794.0,11.14808]
[1743677008058,5.57292,1794.4,1794.1,5.57371]
[1743677008461,5.57262,1794.5,1794.2,5.5735]
[1743677008756,3.0,1794.6,1794.0,5.57406]
[1743677008937,5.57363,1794.2,1793.8,11.95871]
[1743677009138,5.57363,1794.2,1793.9,0.05573841]
[1743677009354,5.57363,1794.2,1793.8,6.38398]
[1743677009526,5.57384,1794.1,1793.8,6.38398]
[1743677010024,5.57325,1794.3,1793.9,5.57443]
[1743677010230,6.06999974,1794.5,1793.8,0.8094]
[1743677010564,5.57337,1794.3,1793.9,5.57444]
[1743677010730,5.57337,1794.3,1793.9,11.14876]
[1743677010938,5.57352,1794.2,1793.9,5.57432]
[1743677011459,5.57352,1794.2,1793.8,6.38409]
[1743677011645,5.57396,1794.1,1793.8,6.38409]
[1743677011851,5.57396,1794.1,1793.8,6.43983024]
[1743677012050,3.7986,1794.3,1793.8,0.05574024]
[1743677012222,6.37316,1793.9,1793.5,5.57543]
[1743677012432,5.57476,1793.8,1793.5,5.57543]
[1743677012622,5.57476,1793.8,1793.4,5.57593]
[1743677012857,5.57508,1793.7,1793.4,5.57593]
[1743677013165,5.57508,1793.7,1793.3,5.57631]
[1743677013350,5.57508,1793.7,1793.4,5.63173302]
[1743677013680,5.57415,1794.0,1793.6,5.57534]
[1743677013862,5.57383,1794.1,1793.8,5.57465]
[1743677014156,12.44646974,1794.2,1793.5,5.57567]
[1743677014157,5.57466,1793.9,1793.5,11.97524]
[1743677014462,5.57414,1794.0,1793.6,5.63105958]
[1743677014658,5.57414,1794.0,1793.6,5.63099958]
[1743677014865,5.57414,1794.0,1793.6,11.15045]
[1743677015641,12.44645974,1794.2,1793.8,5.57475]
[1743677015847,6.06999974,1794.6,1794.2,5.57336]
[1743677016042,5.57261,1794.5,1794.1,5.57376]
[1743677016265,5.57261,1794.5,1794.1,5.57371]
[1743677016468,17.21475974,1794.6,1794.2,5.5734]
[1743677017246,17.21475974,1794.6,1794.2,5.62912783]
[1743677017457,17.21480974,1794.6,1794.2,11.20252783]
[1743677017777,11.64226974,1794.6,1794.3,5.57309]
[1743677017946,6.06999974,1794.6,1794.3,11.14613]
[1743677018149,6.06999974,1794.6,1794.4,5.62858288]
[1743677018350,6.06999974,1794.6,1794.5,5.57258]
[1743677018565,5.62145,1794.9,1794.5,11.14516]
[1743677019176,5.62145,1794.9,1794.6,5.57224]
[1743677019983,0.05,1794.9,1794.6,11.20006452]
[1743677020129,0.05,1794.9,1794.7,5.57195]
[1743677021663,5.57207,1794.7,1794.4,0.8201]
[1743677021978,5.57166,1794.8,1794.4,5.57287]
[1743677022275,5.57166,1794.8,1794.5,0.05571737]
[1743677022486,5.57166,1794.8,1794.5,5.57258]
[1743677022987,5.57166,1794.8,1794.2,6.3647]
[1743677022988,5.57261,1794.5,1794.2,6.3647]
[1743677023148,5.57261,1794.5,1794.2,0.7913]
[1743677023472,5.57261,1794.5,1794.1,5.57372]
[1743677023977,5.573,1794.4,1794.1,5.57372]
[1743677024174,5.573,1794.4,1793.9,5.57429]
[1743677024175,5.57346,1794.3,1793.9,5.57429]
[1743677024377,5.57292,1794.4,1794.0,5.57403]
[1743677024546,5.57292,1794.4,1794.1,0.05573134]
[1743677024942,6.06999974,1794.8,1794.0,0.8154]
[1743677025278,0.05,1794.9,1794.5,5.57246]
[1743677025487,11.19302,1794.9,1794.5,5.57246]
[1743677025678,11.19302,1794.9,1794.5,5.62817864]
[1743677025848,5.62149,1794.9,1794.5,5.62815864]
[1743677026210,0.05,1794.9,1794.8,5.57165]
[1743677026474,0.05,1794.9,1794.8,5.62735967]
[1743677026844,0.05,1794.9,1794.6,6.36153]
[1743677027144,0.05,1794.9,1794.6,11.20006307]
[1743677027343,0.05,1794.9,1794.7,5.57186]
[1743677027544,0.05,1794.9,1794.6,5.57216]
[1743677027744,0.05,1794.9,1794.6,11.14429]
[1743677027965,0.05,1794.9,1794.7,5.57192]
[1743677028170,0.05,1794.9,1794.8,5.6273606]
[1743677028375,0.05,1794.9,1794.7,5.57192]
[1743677028573,0.05,1794.9,1794.5,11.14501]
[1743677028754,5.62152,1794.9,1794.5,11.14501]